Department family,Entity,Date,Expense type,Expense area,Supplier,Transaction number,Amount
Department of Health,Leicestershire Partnership NHS Trust,01/11/22,Unitary Payment,"The Agnes Unit (AKA Assessment and Treatment Centre) (P85, LPT)",ARDEN PARTNERSHIP (LEICESTER),SI0107,131261.17
Department of Health,Leicestershire Partnership NHS Trust,01/11/22,Payroll Deductions -Salary Sacrifice Cars Scheme,Balance Sheet Collection,TUSKER,65856,33712.23
Department of Health,Leicestershire Partnership NHS Trust,02/11/22,Building & Engineering Equipment Equipment/Materials,Estates & Maintenance Team,SEDGEWALL LTD,1NV05551,26352.00
Department of Health,Leicestershire Partnership NHS Trust,02/11/22,HR / Payroll Services,HR Employment Services,LINCOLNSHIRE PART NHSFT(RP7),L0000501,68800.00
Department of Health,Leicestershire Partnership NHS Trust,03/11/22,Healthcare Services / Recharges from Non-NHS Bodies,Adult Eating Disorder Collaborative,PRIORY GROUP,301OCT22LECAED,53188.08
Department of Health,Leicestershire Partnership NHS Trust,03/11/22,Payroll Deductions -Salary Sacrifice Cars Scheme,Balance Sheet Collection,TUSKER,64948,32747.42
Department of Health,Leicestershire Partnership NHS Trust,03/11/22,NURSE - BAND 2 - AGENCY,Beechwood Ward,HCL NURSING,HNSI0001167,2046.56
Department of Health,Leicestershire Partnership NHS Trust,03/11/22,NURSE - BAND 5 - AGENCY,Beechwood Ward,HCL NURSING,HNSI0001167,4902.13
Department of Health,Leicestershire Partnership NHS Trust,03/11/22,NURSE - BAND 2 - AGENCY,CHS Surge Ward,HCL NURSING,HNSI0001167,9048.81
Department of Health,Leicestershire Partnership NHS Trust,03/11/22,NURSE - BAND 5 - AGENCY,CHS Surge Ward,HCL NURSING,HNSI0001167,7568.53
Department of Health,Leicestershire Partnership NHS Trust,03/11/22,NURSE - BAND 5 - AGENCY,City Planned Care - East,HCL NURSING,HNSI0001167,13447.64
Department of Health,Leicestershire Partnership NHS Trust,03/11/22,NURSE - BAND 5 - AGENCY,City Planned Care - West,HCL NURSING,HNSI0001167,12002.07
Department of Health,Leicestershire Partnership NHS Trust,03/11/22,NURSE - BAND 2 - AGENCY,Clarendon Ward,HCL NURSING,HNSI0001167,3719.75
Department of Health,Leicestershire Partnership NHS Trust,03/11/22,NURSE - BAND 5 - AGENCY,Clarendon Ward,HCL NURSING,HNSI0001167,4710.71
Department of Health,Leicestershire Partnership NHS Trust,03/11/22,NURSE - BAND 2 - AGENCY,Coalville Snibston Ward,HCL NURSING,HNSI0001167,3597.65
Department of Health,Leicestershire Partnership NHS Trust,03/11/22,NURSE - BAND 5 - AGENCY,Coalville Snibston Ward,HCL NURSING,HNSI0001167,2132.38
Department of Health,Leicestershire Partnership NHS Trust,03/11/22,NURSE - BAND 2 - AGENCY,Coalville Ward 2,HCL NURSING,HNSI0001167,3246.96
Department of Health,Leicestershire Partnership NHS Trust,03/11/22,NURSE - BAND 5 - AGENCY,Coalville Ward 2,HCL NURSING,HNSI0001167,6506.75
Department of Health,Leicestershire Partnership NHS Trust,03/11/22,NURSE - BAND 2 - AGENCY,Dalgliesh Ward,HCL NURSING,HNSI0001167,3609.82
Department of Health,Leicestershire Partnership NHS Trust,03/11/22,NURSE - BAND 5 - AGENCY,Dalgliesh Ward,HCL NURSING,HNSI0001167,2132.38
Department of Health,Leicestershire Partnership NHS Trust,03/11/22,NURSE - BAND 5 - AGENCY,"East Planned Care - Oadby,Wigston & Harborough",HCL NURSING,HNSI0001167,1083.21
Department of Health,Leicestershire Partnership NHS Trust,03/11/22,NURSE - BAND 2 - AGENCY,H&B Comm Hosp East Ward,HCL NURSING,HNSI0001167,3171.21
Department of Health,Leicestershire Partnership NHS Trust,03/11/22,NURSE - BAND 5 - AGENCY,H&B Comm Hosp East Ward,HCL NURSING,HNSI0001167,4820.07
Department of Health,Leicestershire Partnership NHS Trust,03/11/22,NURSE - BAND 2 - AGENCY,H&B Comm Hosp North Ward,HCL NURSING,HNSI0001167,1794.50
Department of Health,Leicestershire Partnership NHS Trust,03/11/22,NURSE - BAND 5 - AGENCY,H&B Comm Hosp North Ward,HCL NURSING,HNSI0001167,1481.36
Department of Health,Leicestershire Partnership NHS Trust,03/11/22,NURSE - BAND 2 - AGENCY,Lough Swithland Ward,HCL NURSING,HNSI0001167,2852.34
Department of Health,Leicestershire Partnership NHS Trust,03/11/22,NURSE - BAND 5 - AGENCY,Lough Swithland Ward,HCL NURSING,HNSI0001167,3923.59
Department of Health,Leicestershire Partnership NHS Trust,03/11/22,NURSE - BAND 2 - AGENCY,Rutland Ward Nursing,HCL NURSING,HNSI0001167,3319.51
Department of Health,Leicestershire Partnership NHS Trust,03/11/22,NURSE - BAND 5 - AGENCY,Rutland Ward Nursing,HCL NURSING,HNSI0001167,4261.05
Department of Health,Leicestershire Partnership NHS Trust,03/11/22,NURSE - BAND 2 - AGENCY,St Lukes Stroke Ward,HCL NURSING,HNSI0001167,4886.89
Department of Health,Leicestershire Partnership NHS Trust,03/11/22,NURSE - BAND 2 - AGENCY,St Lukes Ward 3,HCL NURSING,HNSI0001167,3126.39
Department of Health,Leicestershire Partnership NHS Trust,03/11/22,NURSE - BAND 5 - AGENCY,West Planned Care  - Hinckley Hub,HCL NURSING,HNSI0001167,364.98
Department of Health,Leicestershire Partnership NHS Trust,03/11/22,WIP Project Not in BS - Buildings excl Dwellings,Work in Progress,TILBURY DOUGLAS CONSTRUCTION LTD,22110004,137913.47
Department of Health,Leicestershire Partnership NHS Trust,03/11/22,WIP Project Not in BS - Buildings excl Dwellings,Work in Progress,TILBURY DOUGLAS CONSTRUCTION LTD,22110005,252341.65
Department of Health,Leicestershire Partnership NHS Trust,04/11/22,Building & Engineering Equipment Equipment/Materials,Estates & Maintenance Team,SEDGEWALL LTD,CRE00203,-26352.00
Department of Health,Leicestershire Partnership NHS Trust,04/11/22,Network Costs - WAN Maint,HIS Infrastructure,VIRGIN MEDIA BUSINESS,919266-148,25703.79
Department of Health,Leicestershire Partnership NHS Trust,04/11/22,GP IT Expenditure,Area Team,DELL COMPUTERS,7402860940,43800.00
Department of Health,Leicestershire Partnership NHS Trust,04/11/22,External Data Processing / Storage,Records & information Governance,L&R STORAGE,4011155,40571.29
Department of Health,Leicestershire Partnership NHS Trust,07/11/22,WIP Project Not in BS - Buildings excl Dwellings,Work in Progress,MOTION OFFICE FUNITURE,4430,145404.95
Department of Health,Leicestershire Partnership NHS Trust,07/11/22,Rent,"Syston Health Centre (New Building) (P127, LPT)",PHIP (5) LIMITED,LINV539756,37500.00
Department of Health,Leicestershire Partnership NHS Trust,07/11/22,Payroll Deductions -Home Electronics 73 Oct 22,Balance Sheet Collection,SME HCI LTD,142173,43107.60
Department of Health,Leicestershire Partnership NHS Trust,07/11/22,WIP Project Not in BS - Buildings excl Dwellings,Work in Progress,TILBURY DOUGLAS CONSTRUCTION LTD,22110052,78949.84
Department of Health,Leicestershire Partnership NHS Trust,07/11/22,WIP Project Not in BS - Buildings excl Dwellings,Work in Progress,TILBURY DOUGLAS CONSTRUCTION LTD,22110053,62011.20
Department of Health,Leicestershire Partnership NHS Trust,07/11/22,WIP Project Not in BS - Buildings excl Dwellings,Work in Progress,TILBURY DOUGLAS CONSTRUCTION LTD,22110054,29182.85
Department of Health,Leicestershire Partnership NHS Trust,07/11/22,WIP Project Not in BS - Buildings excl Dwellings,Work in Progress,TILBURY DOUGLAS CONSTRUCTION LTD,22110056,50297.15
Department of Health,Leicestershire Partnership NHS Trust,07/11/22,WIP Project Not in BS - Buildings excl Dwellings,Work in Progress,TILBURY DOUGLAS CONSTRUCTION LTD,22110061,258377.51
Department of Health,Leicestershire Partnership NHS Trust,07/11/22,WIP Project Not in BS - Buildings excl Dwellings,Work in Progress,TILBURY DOUGLAS CONSTRUCTION LTD,22110066,27028.91
Department of Health,Leicestershire Partnership NHS Trust,08/11/22,Crs_NHS_LT1y -Resus Inventory Supplied.,Balance Sheet Collection,SUPPLY CHAIN CO LTD,1123169834,32370.16
Department of Health,Leicestershire Partnership NHS Trust,08/11/22,Services / Recharges from NHS Trusts,Inter Unit I & E Distribution,UHL NHS TRUST (RWE),L0264973,158352.83
Department of Health,Leicestershire Partnership NHS Trust,08/11/22,Network Costs - WAN Maint,HIS Infrastructure,VIRGIN MEDIA BUSINESS,262421-202,36106.05
Department of Health,Leicestershire Partnership NHS Trust,09/11/22,HR / Payroll Services,HR Employment Services,LINCOLNSHIRE PART NHSFT(RP7),L0000526,34400.00
Department of Health,Leicestershire Partnership NHS Trust,10/11/22,NURSE - BAND 2 - AGENCY,Beechwood Ward,HCL NURSING,HNSI0001171,3763.01
Department of Health,Leicestershire Partnership NHS Trust,10/11/22,NURSE - BAND 5 - AGENCY,Beechwood Ward,HCL NURSING,HNSI0001171,1186.80
Department of Health,Leicestershire Partnership NHS Trust,10/11/22,NURSE - BAND 2 - AGENCY,CHS Surge Ward,HCL NURSING,HNSI0001171,8710.00
Department of Health,Leicestershire Partnership NHS Trust,10/11/22,NURSE - BAND 5 - AGENCY,CHS Surge Ward,HCL NURSING,HNSI0001171,8341.35
Department of Health,Leicestershire Partnership NHS Trust,10/11/22,NURSE - BAND 5 - AGENCY,City Planned Care - East,HCL NURSING,HNSI0001171,11319.65
Department of Health,Leicestershire Partnership NHS Trust,10/11/22,NURSE - BAND 5 - AGENCY,City Planned Care - West,HCL NURSING,HNSI0001171,9589.07
Department of Health,Leicestershire Partnership NHS Trust,10/11/22,NURSE - BAND 2 - AGENCY,Clarendon Ward,HCL NURSING,HNSI0001171,5602.03
Department of Health,Leicestershire Partnership NHS Trust,10/11/22,NURSE - BAND 5 - AGENCY,Clarendon Ward,HCL NURSING,HNSI0001171,6006.58
Department of Health,Leicestershire Partnership NHS Trust,10/11/22,NURSE - BAND 2 - AGENCY,Coalville Snibston Ward,HCL NURSING,HNSI0001171,2049.16
Department of Health,Leicestershire Partnership NHS Trust,10/11/22,NURSE - BAND 5 - AGENCY,Coalville Snibston Ward,HCL NURSING,HNSI0001171,1759.89
Department of Health,Leicestershire Partnership NHS Trust,10/11/22,NURSE - BAND 2 - AGENCY,Coalville Ward 2,HCL NURSING,HNSI0001171,3390.91
Department of Health,Leicestershire Partnership NHS Trust,10/11/22,NURSE - BAND 5 - AGENCY,Coalville Ward 2,HCL NURSING,HNSI0001171,3679.28
Department of Health,Leicestershire Partnership NHS Trust,10/11/22,NURSE - BAND 2 - AGENCY,Dalgliesh Ward,HCL NURSING,HNSI0001171,3982.68
Department of Health,Leicestershire Partnership NHS Trust,10/11/22,NURSE - BAND 5 - AGENCY,Dalgliesh Ward,HCL NURSING,HNSI0001171,4896.34
Department of Health,Leicestershire Partnership NHS Trust,10/11/22,NURSE - BAND 5 - AGENCY,"East Planned Care - Oadby,Wigston & Harborough",HCL NURSING,HNSI0001171,68.34
Department of Health,Leicestershire Partnership NHS Trust,10/11/22,NURSE - BAND 2 - AGENCY,H&B Comm Hosp East Ward,HCL NURSING,HNSI0001171,2858.30
Department of Health,Leicestershire Partnership NHS Trust,10/11/22,NURSE - BAND 5 - AGENCY,H&B Comm Hosp East Ward,HCL NURSING,HNSI0001171,5474.11
Department of Health,Leicestershire Partnership NHS Trust,10/11/22,NURSE - BAND 2 - AGENCY,H&B Comm Hosp North Ward,HCL NURSING,HNSI0001171,1440.00
Department of Health,Leicestershire Partnership NHS Trust,10/11/22,NURSE - BAND 5 - AGENCY,H&B Comm Hosp North Ward,HCL NURSING,HNSI0001171,1551.50
Department of Health,Leicestershire Partnership NHS Trust,10/11/22,NURSE - BAND 2 - AGENCY,Lough Swithland Ward,HCL NURSING,HNSI0001171,3589.11
Department of Health,Leicestershire Partnership NHS Trust,10/11/22,NURSE - BAND 5 - AGENCY,Lough Swithland Ward,HCL NURSING,HNSI0001171,2755.07
Department of Health,Leicestershire Partnership NHS Trust,10/11/22,NURSE - BAND 2 - AGENCY,Rutland Ward Nursing,HCL NURSING,HNSI0001171,3394.56
Department of Health,Leicestershire Partnership NHS Trust,10/11/22,NURSE - BAND 5 - AGENCY,Rutland Ward Nursing,HCL NURSING,HNSI0001171,3878.99
Department of Health,Leicestershire Partnership NHS Trust,10/11/22,NURSE - BAND 2 - AGENCY,St Lukes Stroke Ward,HCL NURSING,HNSI0001171,3516.16
Department of Health,Leicestershire Partnership NHS Trust,10/11/22,NURSE - BAND 5 - AGENCY,St Lukes Stroke Ward,HCL NURSING,HNSI0001171,399.27
Department of Health,Leicestershire Partnership NHS Trust,10/11/22,NURSE - BAND 2 - AGENCY,St Lukes Ward 3,HCL NURSING,HNSI0001171,3473.26
Department of Health,Leicestershire Partnership NHS Trust,14/11/22,Insurance Costs,Chief Executives Office,NHS LITIGATION AUTHORITY,SICX410657,192613.10
Department of Health,Leicestershire Partnership NHS Trust,14/11/22,Telephone equipment,Bridge Park Plaza - First Floor (LPT),VIRGIN MEDIA BUSINESS,60049603,28096.97
Department of Health,Leicestershire Partnership NHS Trust,14/11/22,Computer Software,ChatHealth,APPERCEPT LTD,1256,50000.00
Department of Health,Leicestershire Partnership NHS Trust,14/11/22,Payroll Deductions -NEST EES Pensions,Balance Sheet Collection,NEST,P07DEDS-313/2022,14902.42
Department of Health,Leicestershire Partnership NHS Trust,14/11/22,Payroll Deductions -NEST ERS Pensions,Balance Sheet Collection,NEST,P07DEDS-313/2022,11170.64
Department of Health,Leicestershire Partnership NHS Trust,14/11/22,Crs_NHS_LT1y -Resus Inventory Supplied.,Balance Sheet Collection,SUPPLY CHAIN CO LTD,1123176099,26880.74
Department of Health,Leicestershire Partnership NHS Trust,15/11/22,Nurse - Band 6 -Agency,AMH - Central Access Point,HCL NURSING,HNSI0001178,974.85
Department of Health,Leicestershire Partnership NHS Trust,15/11/22,NURSE - BAND 2 - AGENCY,Agnes Unit,HCL NURSING,HNSI0001178,16883.54
Department of Health,Leicestershire Partnership NHS Trust,15/11/22,NURSE - BAND 5 - AGENCY,Agnes Unit,HCL NURSING,HNSI0001178,17113.25
Department of Health,Leicestershire Partnership NHS Trust,15/11/22,NURSE - BAND 2 - AGENCY,Ashby Ward (Bradgate Unit),HCL NURSING,HNSI0001178,9265.90
Department of Health,Leicestershire Partnership NHS Trust,15/11/22,NURSE - BAND 5 - AGENCY,Ashby Ward (Bradgate Unit),HCL NURSING,HNSI0001178,9318.14
Department of Health,Leicestershire Partnership NHS Trust,15/11/22,NURSE - BAND 2 - AGENCY,Beaumont Ward - Bradgate Unit,HCL NURSING,HNSI0001178,3696.18
Department of Health,Leicestershire Partnership NHS Trust,15/11/22,NURSE - BAND 5 - AGENCY,Beaumont Ward - Bradgate Unit,HCL NURSING,HNSI0001178,15490.70
Department of Health,Leicestershire Partnership NHS Trust,15/11/22,NURSE - BAND 2 - AGENCY,Belvoir Psychiatric Intensive Care Unit,HCL NURSING,HNSI0001178,4572.50
Department of Health,Leicestershire Partnership NHS Trust,15/11/22,NURSE - BAND 5 - AGENCY,Belvoir Psychiatric Intensive Care Unit,HCL NURSING,HNSI0001178,3963.85
Department of Health,Leicestershire Partnership NHS Trust,15/11/22,NURSE - BAND 2 - AGENCY,Bosworth Ward - Bradgate Unit,HCL NURSING,HNSI0001178,2542.00
Department of Health,Leicestershire Partnership NHS Trust,15/11/22,NURSE - BAND 5 - AGENCY,Bosworth Ward - Bradgate Unit,HCL NURSING,HNSI0001178,4730.29
Department of Health,Leicestershire Partnership NHS Trust,15/11/22,NURSE - BAND 2 - AGENCY,Cedar (Willows),HCL NURSING,HNSI0001178,1325.14
Department of Health,Leicestershire Partnership NHS Trust,15/11/22,NURSE - BAND 5 - AGENCY,Cedar (Willows),HCL NURSING,HNSI0001178,2333.12
Department of Health,Leicestershire Partnership NHS Trust,15/11/22,Nurse - Band 6 -Agency,City West CMHT MHSOP,HCL NURSING,HNSI0001178,1046.25
Department of Health,Leicestershire Partnership NHS Trust,15/11/22,NURSE - BAND 2 - AGENCY,Coleman Ward,HCL NURSING,HNSI0001178,11179.39
Department of Health,Leicestershire Partnership NHS Trust,15/11/22,NURSE - BAND 5 - AGENCY,Coleman Ward,HCL NURSING,HNSI0001178,1940.23
Department of Health,Leicestershire Partnership NHS Trust,15/11/22,NURSE - BAND 5 - AGENCY,Crisis Resolution,HCL NURSING,HNSI0001178,2253.04
Department of Health,Leicestershire Partnership NHS Trust,15/11/22,NURSE - BAND 2 - AGENCY,Griffin Ward (HPC),HCL NURSING,HNSI0001178,5509.25
Department of Health,Leicestershire Partnership NHS Trust,15/11/22,NURSE - BAND 5 - AGENCY,Griffin Ward (HPC),HCL NURSING,HNSI0001178,6348.60
Department of Health,Leicestershire Partnership NHS Trust,15/11/22,NURSE - BAND 2 - AGENCY,Gwendolen Ward,HCL NURSING,HNSI0001178,8396.00
Department of Health,Leicestershire Partnership NHS Trust,15/11/22,NURSE - BAND 5 - AGENCY,Gwendolen Ward,HCL NURSING,HNSI0001178,2684.18
Department of Health,Leicestershire Partnership NHS Trust,15/11/22,NURSE - BAND 2 - AGENCY,Heather Ward,HCL NURSING,HNSI0001178,741.29
Department of Health,Leicestershire Partnership NHS Trust,15/11/22,NURSE - BAND 5 - AGENCY,Heather Ward,HCL NURSING,HNSI0001178,9460.78
Department of Health,Leicestershire Partnership NHS Trust,15/11/22,NURSE - BAND 2 - AGENCY,Kirby Ward,HCL NURSING,HNSI0001178,6266.37
Department of Health,Leicestershire Partnership NHS Trust,15/11/22,NURSE - BAND 5 - AGENCY,Kirby Ward,HCL NURSING,HNSI0001178,5193.99
Department of Health,Leicestershire Partnership NHS Trust,15/11/22,NURSE - BAND 2 - AGENCY,Maple Ward,HCL NURSING,HNSI0001178,2521.33
Department of Health,Leicestershire Partnership NHS Trust,15/11/22,NURSE - BAND 5 - AGENCY,Maple Ward,HCL NURSING,HNSI0001178,3213.73
Department of Health,Leicestershire Partnership NHS Trust,15/11/22,Nurse - Band 6 -Agency,Mental Health Liaison Team,HCL NURSING,HNSI0001178,1365.31
Department of Health,Leicestershire Partnership NHS Trust,15/11/22,NURSE - BAND 2 - AGENCY,Mill Lodge,HCL NURSING,HNSI0001178,1131.55
Department of Health,Leicestershire Partnership NHS Trust,15/11/22,NURSE - BAND 5 - AGENCY,Mill Lodge,HCL NURSING,HNSI0001178,2059.40
Department of Health,Leicestershire Partnership NHS Trust,15/11/22,NURSE - BAND 2 - AGENCY,Phoenix Ward (HPC),HCL NURSING,HNSI0001178,1271.27
Department of Health,Leicestershire Partnership NHS Trust,15/11/22,NURSE - BAND 5 - AGENCY,Phoenix Ward (HPC),HCL NURSING,HNSI0001178,3159.70
Department of Health,Leicestershire Partnership NHS Trust,15/11/22,NURSE - BAND 2 - AGENCY,Place Of Safety Assessment Unit,HCL NURSING,HNSI0001178,761.49
Department of Health,Leicestershire Partnership NHS Trust,15/11/22,NURSE - BAND 5 - AGENCY,Place Of Safety Assessment Unit,HCL NURSING,HNSI0001178,1750.77
Department of Health,Leicestershire Partnership NHS Trust,15/11/22,NURSE - BAND 2 - AGENCY,Stewart House,HCL NURSING,HNSI0001178,687.48
Department of Health,Leicestershire Partnership NHS Trust,15/11/22,NURSE - BAND 5 - AGENCY,Stewart House,HCL NURSING,HNSI0001178,2338.20
Department of Health,Leicestershire Partnership NHS Trust,15/11/22,NURSE - BAND 2 - AGENCY,Sycamore (Willows),HCL NURSING,HNSI0001178,2148.49
Department of Health,Leicestershire Partnership NHS Trust,15/11/22,NURSE - BAND 5 - AGENCY,Sycamore (Willows),HCL NURSING,HNSI0001178,940.58
Department of Health,Leicestershire Partnership NHS Trust,15/11/22,NURSE - BAND 2 - AGENCY,Thornton Ward - Bradgate Unit,HCL NURSING,HNSI0001178,475.33
Department of Health,Leicestershire Partnership NHS Trust,15/11/22,NURSE - BAND 2 - AGENCY,Watermead Ward (Bradgate Unit),HCL NURSING,HNSI0001178,449.84
Department of Health,Leicestershire Partnership NHS Trust,15/11/22,NURSE - BAND 2 - AGENCY,Welford Ward,HCL NURSING,HNSI0001178,2923.25
Department of Health,Leicestershire Partnership NHS Trust,15/11/22,NURSE - BAND 5 - AGENCY,Welford Ward,HCL NURSING,HNSI0001178,1873.29
Department of Health,Leicestershire Partnership NHS Trust,15/11/22,Nurse - Band 6 -Agency,CAMHS HUB / CAP,HCL WORKFORCE SOLUTIONS,HWSI0001439,6808.92
Department of Health,Leicestershire Partnership NHS Trust,15/11/22,Nurse - Band 6 -Agency,CAMHS Waiting List Monies,HCL WORKFORCE SOLUTIONS,HWSI0001439,16501.00
Department of Health,Leicestershire Partnership NHS Trust,15/11/22,Nurse - Band 6 -Agency,Crisis Response and Home Treatment,HCL WORKFORCE SOLUTIONS,HWSI0001439,1926.92
Department of Health,Leicestershire Partnership NHS Trust,15/11/22,NURSE - BAND 2 - AGENCY,CAMHS ED Team,HCL NURSING,HNSI0001180,3091.47
Department of Health,Leicestershire Partnership NHS Trust,15/11/22,NURSE - BAND 2 - AGENCY,CAMHS Inpatient Service,HCL NURSING,HNSI0001180,15046.50
Department of Health,Leicestershire Partnership NHS Trust,15/11/22,NURSE - BAND 5 - AGENCY,CAMHS Inpatient Service,HCL NURSING,HNSI0001180,2011.59
Department of Health,Leicestershire Partnership NHS Trust,15/11/22,Nurse - Band 6 -Agency,CAMHS Waiting List Monies,HCL NURSING,HNSI0001180,5336.09
Department of Health,Leicestershire Partnership NHS Trust,15/11/22,NURSE - BAND 2 - AGENCY,Langley Ward ED Inpatient Service,HCL NURSING,HNSI0001180,2155.67
Department of Health,Leicestershire Partnership NHS Trust,15/11/22,NURSE - BAND 5 - AGENCY,Langley Ward ED Inpatient Service,HCL NURSING,HNSI0001180,2587.35
Department of Health,Leicestershire Partnership NHS Trust,15/11/22,Healthcare Services / Recharges from Non-NHS Bodies,Adult Eating Disorder Collaborative,ELLERN MEDE MOORGATE,OTM0474,32400.00
Department of Health,Leicestershire Partnership NHS Trust,15/11/22,Healthcare Services / Recharges from Non-NHS Bodies,Adult Eating Disorder Collaborative,ELLERN MEDE MOORGATE,OTM0472,37200.00
Department of Health,Leicestershire Partnership NHS Trust,15/11/22,Healthcare Services / Recharges from Non-NHS Bodies,Adult Eating Disorder Collaborative,ELLERN MEDE MOORGATE,OTM0477,36000.00
Department of Health,Leicestershire Partnership NHS Trust,15/11/22,Healthcare Services / Recharges from Non-NHS Bodies,Adult Eating Disorder Collaborative,ELLERN MEDE MOORGATE,OTM0475,37200.00
Department of Health,Leicestershire Partnership NHS Trust,15/11/22,Drugs,Adult City Drugs,JANSSEN-CILAG LTD,930892515,12179.69
Department of Health,Leicestershire Partnership NHS Trust,15/11/22,Drugs,Adult County Drugs,JANSSEN-CILAG LTD,930892515,18269.53
Department of Health,Leicestershire Partnership NHS Trust,16/11/22,NURSE - BAND 2 - AGENCY,Beechwood Ward,HCL NURSING,HNSI0001179,5367.17
Department of Health,Leicestershire Partnership NHS Trust,16/11/22,NURSE - BAND 5 - AGENCY,Beechwood Ward,HCL NURSING,HNSI0001179,986.35
Department of Health,Leicestershire Partnership NHS Trust,16/11/22,NURSE - BAND 2 - AGENCY,CHS Surge Ward,HCL NURSING,HNSI0001179,11759.27
Department of Health,Leicestershire Partnership NHS Trust,16/11/22,NURSE - BAND 5 - AGENCY,CHS Surge Ward,HCL NURSING,HNSI0001179,5990.15
Department of Health,Leicestershire Partnership NHS Trust,16/11/22,NURSE - BAND 5 - AGENCY,City Planned Care - East,HCL NURSING,HNSI0001179,11892.82
Department of Health,Leicestershire Partnership NHS Trust,16/11/22,NURSE - BAND 5 - AGENCY,City Planned Care - West,HCL NURSING,HNSI0001179,7947.32
Department of Health,Leicestershire Partnership NHS Trust,16/11/22,NURSE - BAND 2 - AGENCY,Clarendon Ward,HCL NURSING,HNSI0001179,2755.24
Department of Health,Leicestershire Partnership NHS Trust,16/11/22,NURSE - BAND 5 - AGENCY,Clarendon Ward,HCL NURSING,HNSI0001179,3775.68
Department of Health,Leicestershire Partnership NHS Trust,16/11/22,NURSE - BAND 2 - AGENCY,Coalville Snibston Ward,HCL NURSING,HNSI0001179,5715.99
Department of Health,Leicestershire Partnership NHS Trust,16/11/22,NURSE - BAND 5 - AGENCY,Coalville Snibston Ward,HCL NURSING,HNSI0001179,3541.24
Department of Health,Leicestershire Partnership NHS Trust,16/11/22,NURSE - BAND 2 - AGENCY,Coalville Ward 2,HCL NURSING,HNSI0001179,3384.81
Department of Health,Leicestershire Partnership NHS Trust,16/11/22,NURSE - BAND 5 - AGENCY,Coalville Ward 2,HCL NURSING,HNSI0001179,2126.90
Department of Health,Leicestershire Partnership NHS Trust,16/11/22,NURSE - BAND 2 - AGENCY,Dalgliesh Ward,HCL NURSING,HNSI0001179,1614.16
Department of Health,Leicestershire Partnership NHS Trust,16/11/22,NURSE - BAND 5 - AGENCY,Dalgliesh Ward,HCL NURSING,HNSI0001179,4799.13
Department of Health,Leicestershire Partnership NHS Trust,16/11/22,NURSE - BAND 5 - AGENCY,"East Planned Care - Oadby,Wigston & Harborough",HCL NURSING,HNSI0001179,2397.49
Department of Health,Leicestershire Partnership NHS Trust,16/11/22,NURSE - BAND 2 - AGENCY,H&B Comm Hosp East Ward,HCL NURSING,HNSI0001179,5449.42
Department of Health,Leicestershire Partnership NHS Trust,16/11/22,NURSE - BAND 5 - AGENCY,H&B Comm Hosp East Ward,HCL NURSING,HNSI0001179,4138.89
Department of Health,Leicestershire Partnership NHS Trust,16/11/22,NURSE - BAND 2 - AGENCY,H&B Comm Hosp North Ward,HCL NURSING,HNSI0001179,2586.80
Department of Health,Leicestershire Partnership NHS Trust,16/11/22,NURSE - BAND 5 - AGENCY,H&B Comm Hosp North Ward,HCL NURSING,HNSI0001179,2500.95
Department of Health,Leicestershire Partnership NHS Trust,16/11/22,NURSE - BAND 2 - AGENCY,Lough Swithland Ward,HCL NURSING,HNSI0001179,1582.30
Department of Health,Leicestershire Partnership NHS Trust,16/11/22,NURSE - BAND 5 - AGENCY,Lough Swithland Ward,HCL NURSING,HNSI0001179,4755.34
Department of Health,Leicestershire Partnership NHS Trust,16/11/22,NURSE - BAND 2 - AGENCY,Rutland Ward Nursing,HCL NURSING,HNSI0001179,1950.81
Department of Health,Leicestershire Partnership NHS Trust,16/11/22,NURSE - BAND 5 - AGENCY,Rutland Ward Nursing,HCL NURSING,HNSI0001179,4086.23
Department of Health,Leicestershire Partnership NHS Trust,16/11/22,NURSE - BAND 2 - AGENCY,St Lukes Stroke Ward,HCL NURSING,HNSI0001179,4831.01
Department of Health,Leicestershire Partnership NHS Trust,16/11/22,NURSE - BAND 5 - AGENCY,St Lukes Stroke Ward,HCL NURSING,HNSI0001179,715.89
Department of Health,Leicestershire Partnership NHS Trust,16/11/22,NURSE - BAND 2 - AGENCY,St Lukes Ward 3,HCL NURSING,HNSI0001179,2938.15
Department of Health,Leicestershire Partnership NHS Trust,16/11/22,NURSE - BAND 5 - AGENCY,St Lukes Ward 3,HCL NURSING,HNSI0001179,2210.46
Department of Health,Leicestershire Partnership NHS Trust,16/11/22,Pharmacy Payables Control A/C (LPT JAC),Balance Sheet Collection,SEQIRUS UK,9160136314,32921.28
Department of Health,Leicestershire Partnership NHS Trust,18/11/22,Landline Telephone Rental / Calls,"Beaumont Leys Health Centre (P94, LPT)",VIRGIN MEDIA BUSINESS,853083001/004/1122,334.31
Department of Health,Leicestershire Partnership NHS Trust,18/11/22,Landline Telephone Rental / Calls,"Bennion Centre (including Forest Grange Day Unit) (P8, LPT)",VIRGIN MEDIA BUSINESS,853083001/004/1122,7.74
Department of Health,Leicestershire Partnership NHS Trust,18/11/22,Landline Telephone Rental / Calls,"Bradgate Unit (including Glenvale day Unit) (P7, LPT)",VIRGIN MEDIA BUSINESS,853083001/004/1122,9051.64
Department of Health,Leicestershire Partnership NHS Trust,18/11/22,Landline Telephone Rental / Calls,Braunstone Health and Social Care Centre (Part) (PROPCO),VIRGIN MEDIA BUSINESS,853083001/004/1122,1179.86
Department of Health,Leicestershire Partnership NHS Trust,18/11/22,Landline Telephone Rental / Calls,Bridge Park Plaza - First Floor (LPT),VIRGIN MEDIA BUSINESS,853083001/004/1122,3046.98
Department of Health,Leicestershire Partnership NHS Trust,18/11/22,Landline Telephone Rental / Calls,"Coalville Community Hospital (P138, LPT)",VIRGIN MEDIA BUSINESS,853083001/004/1122,1610.23
Department of Health,Leicestershire Partnership NHS Trust,18/11/22,Landline Telephone Rental / Calls,"Coalville Health Centre (P121, LPT)",VIRGIN MEDIA BUSINESS,853083001/004/1122,158.21
Department of Health,Leicestershire Partnership NHS Trust,18/11/22,Landline Telephone Rental / Calls,County Hall,VIRGIN MEDIA BUSINESS,853083001/004/1122,1553.88
Department of Health,Leicestershire Partnership NHS Trust,18/11/22,Landline Telephone Rental / Calls,Estates & Facilities Central,VIRGIN MEDIA BUSINESS,853083001/004/1122,9.14
Department of Health,Leicestershire Partnership NHS Trust,18/11/22,Landline Telephone Rental / Calls,"Evington Centre (P6, LPT)",VIRGIN MEDIA BUSINESS,853083001/004/1122,-80.99
Department of Health,Leicestershire Partnership NHS Trust,18/11/22,Landline Telephone Rental / Calls,HIS,VIRGIN MEDIA BUSINESS,853083001/004/1122,2787.68
Department of Health,Leicestershire Partnership NHS Trust,18/11/22,Landline Telephone Rental / Calls,"Hawthorne Centre - Coalville (P14, LPT)",VIRGIN MEDIA BUSINESS,853083001/004/1122,556.13
Department of Health,Leicestershire Partnership NHS Trust,18/11/22,Landline Telephone Rental / Calls,"Hinckley and Bosworth Community Hospital (Sunnyside) (P133, LPT)",VIRGIN MEDIA BUSINESS,853083001/004/1122,963.83
Department of Health,Leicestershire Partnership NHS Trust,18/11/22,Landline Telephone Rental / Calls,Hood Park Leisure Centre Clinic,VIRGIN MEDIA BUSINESS,853083001/004/1122,23.20
Department of Health,Leicestershire Partnership NHS Trust,18/11/22,Landline Telephone Rental / Calls,"Hynca Lodge (P33, LPT)",VIRGIN MEDIA BUSINESS,853083001/004/1122,384.65
Department of Health,Leicestershire Partnership NHS Trust,18/11/22,Landline Telephone Rental / Calls,"Legion House, Ashby",VIRGIN MEDIA BUSINESS,853083001/004/1122,53.29
Department of Health,Leicestershire Partnership NHS Trust,18/11/22,Landline Telephone Rental / Calls,"Loughborough Hospital (P136, LPT)",VIRGIN MEDIA BUSINESS,853083001/004/1122,4823.08
Department of Health,Leicestershire Partnership NHS Trust,18/11/22,Landline Telephone Rental / Calls,Mawson House (LPT),VIRGIN MEDIA BUSINESS,853083001/004/1122,461.30
Department of Health,Leicestershire Partnership NHS Trust,18/11/22,Landline Telephone Rental / Calls,Merlyn Vaz Centre (CHP),VIRGIN MEDIA BUSINESS,853083001/004/1122,1564.32
Department of Health,Leicestershire Partnership NHS Trust,18/11/22,Landline Telephone Rental / Calls,"Mett Centre (P49, LPT)",VIRGIN MEDIA BUSINESS,853083001/004/1122,83.72
Department of Health,Leicestershire Partnership NHS Trust,18/11/22,Landline Telephone Rental / Calls,NSPCC Training Cente,VIRGIN MEDIA BUSINESS,853083001/004/1122,159.96
Department of Health,Leicestershire Partnership NHS Trust,18/11/22,Landline Telephone Rental / Calls,New Parks Health Centre (PROPCO),VIRGIN MEDIA BUSINESS,853083001/004/1122,1660.73
Department of Health,Leicestershire Partnership NHS Trust,18/11/22,Landline Telephone Rental / Calls,"OSL House (P54, LPT)",VIRGIN MEDIA BUSINESS,853083001/004/1122,977.65
Department of Health,Leicestershire Partnership NHS Trust,18/11/22,Landline Telephone Rental / Calls,"Orchard Resource Centre (P15, LPT)",VIRGIN MEDIA BUSINESS,853083001/004/1122,574.92
Department of Health,Leicestershire Partnership NHS Trust,18/11/22,Landline Telephone Rental / Calls,Pasley Road Health Centre (PROPCO),VIRGIN MEDIA BUSINESS,853083001/004/1122,135.46
Department of Health,Leicestershire Partnership NHS Trust,18/11/22,Landline Telephone Rental / Calls,"Prince Philip House (P96, LPT)",VIRGIN MEDIA BUSINESS,853083001/004/1122,1497.78
Department of Health,Leicestershire Partnership NHS Trust,18/11/22,Landline Telephone Rental / Calls,Rushey Mead Health Centre (PROPCO),VIRGIN MEDIA BUSINESS,853083001/004/1122,77.63
Department of Health,Leicestershire Partnership NHS Trust,18/11/22,Landline Telephone Rental / Calls,"Shepshed Health Centre (P123, LPT)",VIRGIN MEDIA BUSINESS,853083001/004/1122,7.74
Department of Health,Leicestershire Partnership NHS Trust,18/11/22,Landline Telephone Rental / Calls,"Springfield Road Health Centre (P92, LPT)",VIRGIN MEDIA BUSINESS,853083001/004/1122,344.23
Department of Health,Leicestershire Partnership NHS Trust,18/11/22,Landline Telephone Rental / Calls,"St Peters Health Center (Part 1st and 2nd floors) (P66, LPT)",VIRGIN MEDIA BUSINESS,853083001/004/1122,1794.32
Department of Health,Leicestershire Partnership NHS Trust,18/11/22,Landline Telephone Rental / Calls,"Swithland House - London Road 352 (P44, LPT)",VIRGIN MEDIA BUSINESS,853083001/004/1122,302.11
Department of Health,Leicestershire Partnership NHS Trust,18/11/22,Landline Telephone Rental / Calls,"The Cedars (P19, LPT)",VIRGIN MEDIA BUSINESS,853083001/004/1122,732.26
Department of Health,Leicestershire Partnership NHS Trust,18/11/22,Landline Telephone Rental / Calls,"The Willows - Cordelia Close (P22, LPT)",VIRGIN MEDIA BUSINESS,853083001/004/1122,511.10
Department of Health,Leicestershire Partnership NHS Trust,18/11/22,Landline Telephone Rental / Calls,"Valentine Centre (P3, LPT)",VIRGIN MEDIA BUSINESS,853083001/004/1122,1836.55
Department of Health,Leicestershire Partnership NHS Trust,18/11/22,Landline Telephone Rental / Calls,Warren Park Way 25 (PROPCO),VIRGIN MEDIA BUSINESS,853083001/004/1122,754.31
Department of Health,Leicestershire Partnership NHS Trust,18/11/22,Landline Telephone Rental / Calls,"Westcotes Group -Westcotes House (P78, LPT)",VIRGIN MEDIA BUSINESS,853083001/004/1122,1385.35
Department of Health,Leicestershire Partnership NHS Trust,18/11/22,Landline Telephone Rental / Calls,"Winstanley Drive Health Centre (P8, LPT)",VIRGIN MEDIA BUSINESS,853083001/004/1122,469.34
Department of Health,Leicestershire Partnership NHS Trust,21/11/22,Photocopying,Estates & Facilities Central,LEXMARK INTERNATIONAL LTD,900650304386,34918.96
Department of Health,Leicestershire Partnership NHS Trust,21/11/22,Services / Recharges from NHS Trusts,Inter Unit I & E Distribution,UHL NHS TRUST (RWE),L0265319,158352.83
Department of Health,Leicestershire Partnership NHS Trust,21/11/22,Crs_NHS_LT1y -Resus Inventory Supplied.,Balance Sheet Collection,SUPPLY CHAIN CO LTD,1123183244,29288.97
Department of Health,Leicestershire Partnership NHS Trust,21/11/22,Services / Recharges from NHS Trusts,Inter Unit I & E Distribution,UHL NHS TRUST (RWE),L0265336,38832.37
Department of Health,Leicestershire Partnership NHS Trust,21/11/22,Cytogenetic Testing,Community Paediatrics,UHL NHS TRUST (RWE),L0265335,32163.91
Department of Health,Leicestershire Partnership NHS Trust,21/11/22,Computer Consumables,HIS,CCS MEDIA,4710395,28648.80
Department of Health,Leicestershire Partnership NHS Trust,22/11/22,NURSE - BAND 2 - AGENCY,Beechwood Ward,HCL NURSING,HNSI0001185,4738.63
Department of Health,Leicestershire Partnership NHS Trust,22/11/22,NURSE - BAND 5 - AGENCY,Beechwood Ward,HCL NURSING,HNSI0001185,2960.79
Department of Health,Leicestershire Partnership NHS Trust,22/11/22,NURSE - BAND 2 - AGENCY,CHS Surge Ward,HCL NURSING,HNSI0001185,10872.10
Department of Health,Leicestershire Partnership NHS Trust,22/11/22,NURSE - BAND 5 - AGENCY,CHS Surge Ward,HCL NURSING,HNSI0001185,9356.72
Department of Health,Leicestershire Partnership NHS Trust,22/11/22,NURSE - BAND 5 - AGENCY,City Planned Care - East,HCL NURSING,HNSI0001185,11744.97
Department of Health,Leicestershire Partnership NHS Trust,22/11/22,NURSE - BAND 5 - AGENCY,City Planned Care - West,HCL NURSING,HNSI0001185,11479.47
Department of Health,Leicestershire Partnership NHS Trust,22/11/22,NURSE - BAND 2 - AGENCY,Clarendon Ward,HCL NURSING,HNSI0001185,5233.23
Department of Health,Leicestershire Partnership NHS Trust,22/11/22,NURSE - BAND 5 - AGENCY,Clarendon Ward,HCL NURSING,HNSI0001185,4324.72
Department of Health,Leicestershire Partnership NHS Trust,22/11/22,NURSE - BAND 2 - AGENCY,Coalville Snibston Ward,HCL NURSING,HNSI0001185,3020.37
Department of Health,Leicestershire Partnership NHS Trust,22/11/22,NURSE - BAND 5 - AGENCY,Coalville Snibston Ward,HCL NURSING,HNSI0001185,4029.21
Department of Health,Leicestershire Partnership NHS Trust,22/11/22,NURSE - BAND 2 - AGENCY,Coalville Ward 2,HCL NURSING,HNSI0001185,3116.61
Department of Health,Leicestershire Partnership NHS Trust,22/11/22,NURSE - BAND 5 - AGENCY,Coalville Ward 2,HCL NURSING,HNSI0001185,2252.21
Department of Health,Leicestershire Partnership NHS Trust,22/11/22,NURSE - BAND 2 - AGENCY,Dalgliesh Ward,HCL NURSING,HNSI0001185,2314.32
Department of Health,Leicestershire Partnership NHS Trust,22/11/22,NURSE - BAND 5 - AGENCY,Dalgliesh Ward,HCL NURSING,HNSI0001185,3215.09
Department of Health,Leicestershire Partnership NHS Trust,22/11/22,NURSE - BAND 5 - AGENCY,"East Planned Care - Oadby,Wigston & Harborough",HCL NURSING,HNSI0001185,1286.69
Department of Health,Leicestershire Partnership NHS Trust,22/11/22,NURSE - BAND 2 - AGENCY,H&B Comm Hosp East Ward,HCL NURSING,HNSI0001185,1187.98
Department of Health,Leicestershire Partnership NHS Trust,22/11/22,NURSE - BAND 5 - AGENCY,H&B Comm Hosp East Ward,HCL NURSING,HNSI0001185,6280.53
Department of Health,Leicestershire Partnership NHS Trust,22/11/22,NURSE - BAND 2 - AGENCY,H&B Comm Hosp North Ward,HCL NURSING,HNSI0001185,1086.26
Department of Health,Leicestershire Partnership NHS Trust,22/11/22,NURSE - BAND 5 - AGENCY,H&B Comm Hosp North Ward,HCL NURSING,HNSI0001185,1399.56
Department of Health,Leicestershire Partnership NHS Trust,22/11/22,NURSE - BAND 2 - AGENCY,Lough Swithland Ward,HCL NURSING,HNSI0001185,2918.07
Department of Health,Leicestershire Partnership NHS Trust,22/11/22,NURSE - BAND 5 - AGENCY,Lough Swithland Ward,HCL NURSING,HNSI0001185,3271.20
Department of Health,Leicestershire Partnership NHS Trust,22/11/22,NURSE - BAND 2 - AGENCY,Rutland Ward Nursing,HCL NURSING,HNSI0001185,2076.87
Department of Health,Leicestershire Partnership NHS Trust,22/11/22,NURSE - BAND 5 - AGENCY,Rutland Ward Nursing,HCL NURSING,HNSI0001185,4408.88
Department of Health,Leicestershire Partnership NHS Trust,22/11/22,NURSE - BAND 2 - AGENCY,St Lukes Stroke Ward,HCL NURSING,HNSI0001185,5454.23
Department of Health,Leicestershire Partnership NHS Trust,22/11/22,NURSE - BAND 5 - AGENCY,St Lukes Stroke Ward,HCL NURSING,HNSI0001185,1496.74
Department of Health,Leicestershire Partnership NHS Trust,22/11/22,NURSE - BAND 2 - AGENCY,St Lukes Ward 3,HCL NURSING,HNSI0001185,1318.77
Department of Health,Leicestershire Partnership NHS Trust,22/11/22,NURSE - BAND 5 - AGENCY,St Lukes Ward 3,HCL NURSING,HNSI0001185,553.33
Department of Health,Leicestershire Partnership NHS Trust,22/11/22,Computer Consumables,HIS,CCS MEDIA,4710436,57297.60
Department of Health,Leicestershire Partnership NHS Trust,22/11/22,Nurse - Band 6 -Agency,AMH - Central Access Point,HCL WORKFORCE SOLUTIONS,HWSI0001448,6323.13
Department of Health,Leicestershire Partnership NHS Trust,22/11/22,Nurse - Band 6 -Agency,Adult City Central CMHT - St Peters,HCL WORKFORCE SOLUTIONS,HWSI0001448,549.63
Department of Health,Leicestershire Partnership NHS Trust,22/11/22,Nurse - Band 6 -Agency,Adult County Charnwood CMHT - Loughborough Base,HCL WORKFORCE SOLUTIONS,HWSI0001448,1334.63
Department of Health,Leicestershire Partnership NHS Trust,22/11/22,NURSE - BAND 5 - AGENCY,Ashby Ward (Bradgate Unit),HCL WORKFORCE SOLUTIONS,HWSI0001448,722.75
Department of Health,Leicestershire Partnership NHS Trust,22/11/22,Nurse - Band 6 -Agency,Crisis Resolution,HCL WORKFORCE SOLUTIONS,HWSI0001448,13817.75
Department of Health,Leicestershire Partnership NHS Trust,22/11/22,NURSE - BAND 5 - AGENCY,Heather Ward,HCL WORKFORCE SOLUTIONS,HWSI0001448,339.98
Department of Health,Leicestershire Partnership NHS Trust,22/11/22,Nurse - Band 6 -Agency,South Leicestershire CMHT MHSOP,HCL WORKFORCE SOLUTIONS,HWSI0001448,1351.45
Department of Health,Leicestershire Partnership NHS Trust,22/11/22,Nurse - Band 6 -Agency,AMH - Central Access Point,HCL NURSING,HNSI0001184,2394.41
Department of Health,Leicestershire Partnership NHS Trust,22/11/22,Nurse - Band 7 - Agency,Adult County- East Leicester CMHT,HCL NURSING,HNSI0001184,2670.00
Department of Health,Leicestershire Partnership NHS Trust,22/11/22,NURSE - BAND 2 - AGENCY,Agnes Unit,HCL NURSING,HNSI0001184,16276.54
Department of Health,Leicestershire Partnership NHS Trust,22/11/22,NURSE - BAND 5 - AGENCY,Agnes Unit,HCL NURSING,HNSI0001184,16816.71
Department of Health,Leicestershire Partnership NHS Trust,22/11/22,NURSE - BAND 2 - AGENCY,Ashby Ward (Bradgate Unit),HCL NURSING,HNSI0001184,12887.32
Department of Health,Leicestershire Partnership NHS Trust,22/11/22,NURSE - BAND 5 - AGENCY,Ashby Ward (Bradgate Unit),HCL NURSING,HNSI0001184,9186.08
Department of Health,Leicestershire Partnership NHS Trust,22/11/22,NURSE - BAND 2 - AGENCY,Beaumont Ward - Bradgate Unit,HCL NURSING,HNSI0001184,1047.32
Department of Health,Leicestershire Partnership NHS Trust,22/11/22,NURSE - BAND 5 - AGENCY,Beaumont Ward - Bradgate Unit,HCL NURSING,HNSI0001184,12560.32
Department of Health,Leicestershire Partnership NHS Trust,22/11/22,NURSE - BAND 2 - AGENCY,Belvoir Psychiatric Intensive Care Unit,HCL NURSING,HNSI0001184,3871.70
Department of Health,Leicestershire Partnership NHS Trust,22/11/22,NURSE - BAND 5 - AGENCY,Belvoir Psychiatric Intensive Care Unit,HCL NURSING,HNSI0001184,3028.97
Department of Health,Leicestershire Partnership NHS Trust,22/11/22,NURSE - BAND 2 - AGENCY,Bosworth Ward - Bradgate Unit,HCL NURSING,HNSI0001184,3365.95
Department of Health,Leicestershire Partnership NHS Trust,22/11/22,NURSE - BAND 5 - AGENCY,Bosworth Ward - Bradgate Unit,HCL NURSING,HNSI0001184,4989.25
Department of Health,Leicestershire Partnership NHS Trust,22/11/22,NURSE - BAND 2 - AGENCY,Cedar (Willows),HCL NURSING,HNSI0001184,2889.78
Department of Health,Leicestershire Partnership NHS Trust,22/11/22,NURSE - BAND 5 - AGENCY,Cedar (Willows),HCL NURSING,HNSI0001184,2697.24
Department of Health,Leicestershire Partnership NHS Trust,22/11/22,Nurse - Band 6 -Agency,City West CMHT MHSOP,HCL NURSING,HNSI0001184,1046.25
Department of Health,Leicestershire Partnership NHS Trust,22/11/22,NURSE - BAND 2 - AGENCY,Coleman Ward,HCL NURSING,HNSI0001184,14262.10
Department of Health,Leicestershire Partnership NHS Trust,22/11/22,NURSE - BAND 5 - AGENCY,Coleman Ward,HCL NURSING,HNSI0001184,3797.69
Department of Health,Leicestershire Partnership NHS Trust,22/11/22,NURSE - BAND 5 - AGENCY,Crisis Resolution,HCL NURSING,HNSI0001184,893.92
Department of Health,Leicestershire Partnership NHS Trust,22/11/22,NURSE - BAND 2 - AGENCY,Griffin Ward (HPC),HCL NURSING,HNSI0001184,3263.31
Department of Health,Leicestershire Partnership NHS Trust,22/11/22,NURSE - BAND 5 - AGENCY,Griffin Ward (HPC),HCL NURSING,HNSI0001184,6189.48
Department of Health,Leicestershire Partnership NHS Trust,22/11/22,NURSE - BAND 2 - AGENCY,Gwendolen Ward,HCL NURSING,HNSI0001184,9984.52
Department of Health,Leicestershire Partnership NHS Trust,22/11/22,NURSE - BAND 5 - AGENCY,Gwendolen Ward,HCL NURSING,HNSI0001184,761.11
Department of Health,Leicestershire Partnership NHS Trust,22/11/22,NURSE - BAND 2 - AGENCY,Heather Ward,HCL NURSING,HNSI0001184,635.71
Department of Health,Leicestershire Partnership NHS Trust,22/11/22,NURSE - BAND 5 - AGENCY,Heather Ward,HCL NURSING,HNSI0001184,7308.75
Department of Health,Leicestershire Partnership NHS Trust,22/11/22,NURSE - BAND 2 - AGENCY,Kirby Ward,HCL NURSING,HNSI0001184,2315.36
Department of Health,Leicestershire Partnership NHS Trust,22/11/22,NURSE - BAND 5 - AGENCY,Kirby Ward,HCL NURSING,HNSI0001184,1615.38
Department of Health,Leicestershire Partnership NHS Trust,22/11/22,NURSE - BAND 2 - AGENCY,Maple Ward,HCL NURSING,HNSI0001184,2336.48
Department of Health,Leicestershire Partnership NHS Trust,22/11/22,NURSE - BAND 5 - AGENCY,Maple Ward,HCL NURSING,HNSI0001184,1413.93
Department of Health,Leicestershire Partnership NHS Trust,22/11/22,Nurse - Band 6 -Agency,Mental Health Liaison Team,HCL NURSING,HNSI0001184,2321.11
Department of Health,Leicestershire Partnership NHS Trust,22/11/22,NURSE - BAND 2 - AGENCY,Mill Lodge,HCL NURSING,HNSI0001184,1912.70
Department of Health,Leicestershire Partnership NHS Trust,22/11/22,NURSE - BAND 5 - AGENCY,Mill Lodge,HCL NURSING,HNSI0001184,2195.20
Department of Health,Leicestershire Partnership NHS Trust,22/11/22,NURSE - BAND 2 - AGENCY,Phoenix Ward (HPC),HCL NURSING,HNSI0001184,1937.18
Department of Health,Leicestershire Partnership NHS Trust,22/11/22,NURSE - BAND 5 - AGENCY,Phoenix Ward (HPC),HCL NURSING,HNSI0001184,1960.28
Department of Health,Leicestershire Partnership NHS Trust,22/11/22,NURSE - BAND 2 - AGENCY,Place Of Safety Assessment Unit,HCL NURSING,HNSI0001184,244.00
Department of Health,Leicestershire Partnership NHS Trust,22/11/22,NURSE - BAND 5 - AGENCY,Place Of Safety Assessment Unit,HCL NURSING,HNSI0001184,2468.13
Department of Health,Leicestershire Partnership NHS Trust,22/11/22,NURSE - BAND 2 - AGENCY,Stewart House,HCL NURSING,HNSI0001184,846.20
Department of Health,Leicestershire Partnership NHS Trust,22/11/22,NURSE - BAND 5 - AGENCY,Stewart House,HCL NURSING,HNSI0001184,1063.89
Department of Health,Leicestershire Partnership NHS Trust,22/11/22,NURSE - BAND 2 - AGENCY,Sycamore (Willows),HCL NURSING,HNSI0001184,2366.61
Department of Health,Leicestershire Partnership NHS Trust,22/11/22,NURSE - BAND 5 - AGENCY,Sycamore (Willows),HCL NURSING,HNSI0001184,5800.67
Department of Health,Leicestershire Partnership NHS Trust,22/11/22,NURSE - BAND 2 - AGENCY,Thornton Ward - Bradgate Unit,HCL NURSING,HNSI0001184,3363.27
Department of Health,Leicestershire Partnership NHS Trust,22/11/22,NURSE - BAND 5 - AGENCY,Thornton Ward - Bradgate Unit,HCL NURSING,HNSI0001184,449.54
Department of Health,Leicestershire Partnership NHS Trust,22/11/22,NURSE - BAND 2 - AGENCY,Welford Ward,HCL NURSING,HNSI0001184,1473.92
Department of Health,Leicestershire Partnership NHS Trust,22/11/22,NURSE - BAND 5 - AGENCY,Welford Ward,HCL NURSING,HNSI0001184,1896.42
Department of Health,Leicestershire Partnership NHS Trust,22/11/22,NURSE - BAND 2 - AGENCY,CAMHS ED Team,HCL NURSING,HNSI0001172,2576.39
Department of Health,Leicestershire Partnership NHS Trust,22/11/22,NURSE - BAND 5 - AGENCY,CAMHS ED Team,HCL NURSING,HNSI0001172,614.43
Department of Health,Leicestershire Partnership NHS Trust,22/11/22,Nurse - Band 6 -Agency,CAMHS ED Team,HCL NURSING,HNSI0001172,461.80
Department of Health,Leicestershire Partnership NHS Trust,22/11/22,NURSE - BAND 2 - AGENCY,CAMHS Inpatient Service,HCL NURSING,HNSI0001172,10531.42
Department of Health,Leicestershire Partnership NHS Trust,22/11/22,NURSE - BAND 5 - AGENCY,CAMHS Inpatient Service,HCL NURSING,HNSI0001172,7792.12
Department of Health,Leicestershire Partnership NHS Trust,22/11/22,Nurse - Band 6 -Agency,CAMHS Inpatient Service,HCL NURSING,HNSI0001172,812.54
Department of Health,Leicestershire Partnership NHS Trust,22/11/22,NURSE - BAND 2 - AGENCY,CAMHS Waiting List Monies,HCL NURSING,HNSI0001172,2124.96
Department of Health,Leicestershire Partnership NHS Trust,22/11/22,NURSE - BAND 5 - AGENCY,CAMHS Waiting List Monies,HCL NURSING,HNSI0001172,1182.59
Department of Health,Leicestershire Partnership NHS Trust,22/11/22,Nurse - Band 6 -Agency,CAMHS Waiting List Monies,HCL NURSING,HNSI0001172,4459.98
Department of Health,Leicestershire Partnership NHS Trust,22/11/22,NURSE - BAND 2 - AGENCY,Langley Ward ED Inpatient Service,HCL NURSING,HNSI0001172,602.62
Department of Health,Leicestershire Partnership NHS Trust,22/11/22,NURSE - BAND 5 - AGENCY,Langley Ward ED Inpatient Service,HCL NURSING,HNSI0001172,3231.43
Department of Health,Leicestershire Partnership NHS Trust,22/11/22,Nurse - Band 6 -Agency,Langley Ward ED Inpatient Service,HCL NURSING,HNSI0001172,112.96
Department of Health,Leicestershire Partnership NHS Trust,22/11/22,NURSE - BAND 2 - AGENCY,CAMHS HUB / CAP,HCL WORKFORCE SOLUTIONS,HWSI0001430,2800.90
Department of Health,Leicestershire Partnership NHS Trust,22/11/22,NURSE - BAND 5 - AGENCY,CAMHS HUB / CAP,HCL WORKFORCE SOLUTIONS,HWSI0001430,871.23
Department of Health,Leicestershire Partnership NHS Trust,22/11/22,Nurse - Band 6 -Agency,CAMHS HUB / CAP,HCL WORKFORCE SOLUTIONS,HWSI0001430,518.92
Department of Health,Leicestershire Partnership NHS Trust,22/11/22,NURSE - BAND 2 - AGENCY,CAMHS Waiting List Monies,HCL WORKFORCE SOLUTIONS,HWSI0001430,7568.33
Department of Health,Leicestershire Partnership NHS Trust,22/11/22,NURSE - BAND 5 - AGENCY,CAMHS Waiting List Monies,HCL WORKFORCE SOLUTIONS,HWSI0001430,6455.56
Department of Health,Leicestershire Partnership NHS Trust,22/11/22,Nurse - Band 6 -Agency,CAMHS Waiting List Monies,HCL WORKFORCE SOLUTIONS,HWSI0001430,3084.03
Department of Health,Leicestershire Partnership NHS Trust,22/11/22,NURSE - BAND 2 - AGENCY,Crisis Response and Home Treatment,HCL WORKFORCE SOLUTIONS,HWSI0001430,1519.41
Department of Health,Leicestershire Partnership NHS Trust,22/11/22,Nurse - Band 6 -Agency,Crisis Response and Home Treatment,HCL WORKFORCE SOLUTIONS,HWSI0001430,415.45
Department of Health,Leicestershire Partnership NHS Trust,22/11/22,NURSE - BAND 2 - AGENCY,CAMHS ED Team,HCL NURSING,HNSI0001186,2988.86
Department of Health,Leicestershire Partnership NHS Trust,22/11/22,NURSE - BAND 2 - AGENCY,CAMHS Inpatient Service,HCL NURSING,HNSI0001186,15511.46
Department of Health,Leicestershire Partnership NHS Trust,22/11/22,NURSE - BAND 5 - AGENCY,CAMHS Inpatient Service,HCL NURSING,HNSI0001186,6775.71
Department of Health,Leicestershire Partnership NHS Trust,22/11/22,Nurse - Band 6 -Agency,CAMHS Waiting List Monies,HCL NURSING,HNSI0001186,7116.67
Department of Health,Leicestershire Partnership NHS Trust,22/11/22,NURSE - BAND 2 - AGENCY,Langley Ward ED Inpatient Service,HCL NURSING,HNSI0001186,1228.89
Department of Health,Leicestershire Partnership NHS Trust,22/11/22,NURSE - BAND 5 - AGENCY,Langley Ward ED Inpatient Service,HCL NURSING,HNSI0001186,2724.40
Department of Health,Leicestershire Partnership NHS Trust,22/11/22,NURSE - BAND 2 - AGENCY,Watermead Ward (Bradgate Unit),HCL NURSING,HNSI0001187,10433.65
Department of Health,Leicestershire Partnership NHS Trust,22/11/22,NURSE - BAND 5 - AGENCY,Watermead Ward (Bradgate Unit),HCL NURSING,HNSI0001187,13211.67
Department of Health,Leicestershire Partnership NHS Trust,22/11/22,NURSE - BAND 2 - AGENCY,AMH - Central Access Point,HCL NURSING,HNSI0001170,7.00
Department of Health,Leicestershire Partnership NHS Trust,22/11/22,NURSE - BAND 5 - AGENCY,AMH - Central Access Point,HCL NURSING,HNSI0001170,1.05
Department of Health,Leicestershire Partnership NHS Trust,22/11/22,Nurse - Band 6 -Agency,AMH - Central Access Point,HCL NURSING,HNSI0001170,1141.92
Department of Health,Leicestershire Partnership NHS Trust,22/11/22,Nurse - Band 7 - Agency,Adult County- East Leicester CMHT,HCL NURSING,HNSI0001170,2829.46
Department of Health,Leicestershire Partnership NHS Trust,22/11/22,NURSE - BAND 2 - AGENCY,Agnes Unit,HCL NURSING,HNSI0001170,12490.55
Department of Health,Leicestershire Partnership NHS Trust,22/11/22,NURSE - BAND 5 - AGENCY,Agnes Unit,HCL NURSING,HNSI0001170,14555.24
Department of Health,Leicestershire Partnership NHS Trust,22/11/22,Nurse - Band 6 -Agency,Agnes Unit,HCL NURSING,HNSI0001170,1626.11
Department of Health,Leicestershire Partnership NHS Trust,22/11/22,NURSE - BAND 2 - AGENCY,Ashby Ward (Bradgate Unit),HCL NURSING,HNSI0001170,4892.05
Department of Health,Leicestershire Partnership NHS Trust,22/11/22,NURSE - BAND 5 - AGENCY,Ashby Ward (Bradgate Unit),HCL NURSING,HNSI0001170,13385.53
Department of Health,Leicestershire Partnership NHS Trust,22/11/22,Nurse - Band 6 -Agency,Ashby Ward (Bradgate Unit),HCL NURSING,HNSI0001170,1042.99
Department of Health,Leicestershire Partnership NHS Trust,22/11/22,NURSE - BAND 2 - AGENCY,Beaumont Ward - Bradgate Unit,HCL NURSING,HNSI0001170,3493.98
Department of Health,Leicestershire Partnership NHS Trust,22/11/22,NURSE - BAND 5 - AGENCY,Beaumont Ward - Bradgate Unit,HCL NURSING,HNSI0001170,15052.92
Department of Health,Leicestershire Partnership NHS Trust,22/11/22,Nurse - Band 6 -Agency,Beaumont Ward - Bradgate Unit,HCL NURSING,HNSI0001170,61.38
Department of Health,Leicestershire Partnership NHS Trust,22/11/22,NURSE - BAND 2 - AGENCY,Belvoir Psychiatric Intensive Care Unit,HCL NURSING,HNSI0001170,1900.35
Department of Health,Leicestershire Partnership NHS Trust,22/11/22,NURSE - BAND 5 - AGENCY,Belvoir Psychiatric Intensive Care Unit,HCL NURSING,HNSI0001170,6239.98
Department of Health,Leicestershire Partnership NHS Trust,22/11/22,Nurse - Band 6 -Agency,Belvoir Psychiatric Intensive Care Unit,HCL NURSING,HNSI0001170,628.92
Department of Health,Leicestershire Partnership NHS Trust,22/11/22,NURSE - BAND 2 - AGENCY,Bosworth Ward - Bradgate Unit,HCL NURSING,HNSI0001170,1356.33
Department of Health,Leicestershire Partnership NHS Trust,22/11/22,NURSE - BAND 5 - AGENCY,Bosworth Ward - Bradgate Unit,HCL NURSING,HNSI0001170,7117.12
Department of Health,Leicestershire Partnership NHS Trust,22/11/22,Nurse - Band 6 -Agency,Bosworth Ward - Bradgate Unit,HCL NURSING,HNSI0001170,202.97
Department of Health,Leicestershire Partnership NHS Trust,22/11/22,NURSE - BAND 2 - AGENCY,Cedar (Willows),HCL NURSING,HNSI0001170,222.56
Department of Health,Leicestershire Partnership NHS Trust,22/11/22,NURSE - BAND 5 - AGENCY,Cedar (Willows),HCL NURSING,HNSI0001170,5201.34
Department of Health,Leicestershire Partnership NHS Trust,22/11/22,Nurse - Band 6 -Agency,Cedar (Willows),HCL NURSING,HNSI0001170,212.74
Department of Health,Leicestershire Partnership NHS Trust,22/11/22,NURSE - BAND 2 - AGENCY,City West CMHT MHSOP,HCL NURSING,HNSI0001170,1.58
Department of Health,Leicestershire Partnership NHS Trust,22/11/22,NURSE - BAND 5 - AGENCY,City West CMHT MHSOP,HCL NURSING,HNSI0001170,4.73
Department of Health,Leicestershire Partnership NHS Trust,22/11/22,Nurse - Band 6 -Agency,City West CMHT MHSOP,HCL NURSING,HNSI0001170,1049.70
Department of Health,Leicestershire Partnership NHS Trust,22/11/22,NURSE - BAND 2 - AGENCY,Coleman Ward,HCL NURSING,HNSI0001170,7368.76
Department of Health,Leicestershire Partnership NHS Trust,22/11/22,NURSE - BAND 5 - AGENCY,Coleman Ward,HCL NURSING,HNSI0001170,6337.67
Department of Health,Leicestershire Partnership NHS Trust,22/11/22,Nurse - Band 6 -Agency,Coleman Ward,HCL NURSING,HNSI0001170,425.67
Department of Health,Leicestershire Partnership NHS Trust,22/11/22,NURSE - BAND 2 - AGENCY,Crisis Resolution,HCL NURSING,HNSI0001170,0.17
Department of Health,Leicestershire Partnership NHS Trust,22/11/22,NURSE - BAND 5 - AGENCY,Crisis Resolution,HCL NURSING,HNSI0001170,2010.68
Department of Health,Leicestershire Partnership NHS Trust,22/11/22,Nurse - Band 6 -Agency,Crisis Resolution,HCL NURSING,HNSI0001170,4.02
Department of Health,Leicestershire Partnership NHS Trust,22/11/22,NURSE - BAND 2 - AGENCY,Griffin Ward (HPC),HCL NURSING,HNSI0001170,2020.62
Department of Health,Leicestershire Partnership NHS Trust,22/11/22,NURSE - BAND 5 - AGENCY,Griffin Ward (HPC),HCL NURSING,HNSI0001170,6649.84
Department of Health,Leicestershire Partnership NHS Trust,22/11/22,Nurse - Band 6 -Agency,Griffin Ward (HPC),HCL NURSING,HNSI0001170,459.31
Department of Health,Leicestershire Partnership NHS Trust,22/11/22,NURSE - BAND 2 - AGENCY,Gwendolen Ward,HCL NURSING,HNSI0001170,6623.65
Department of Health,Leicestershire Partnership NHS Trust,22/11/22,NURSE - BAND 5 - AGENCY,Gwendolen Ward,HCL NURSING,HNSI0001170,1823.73
Department of Health,Leicestershire Partnership NHS Trust,22/11/22,Nurse - Band 6 -Agency,Gwendolen Ward,HCL NURSING,HNSI0001170,467.12
Department of Health,Leicestershire Partnership NHS Trust,22/11/22,NURSE - BAND 2 - AGENCY,Heather Ward,HCL NURSING,HNSI0001170,599.86
Department of Health,Leicestershire Partnership NHS Trust,22/11/22,NURSE - BAND 5 - AGENCY,Heather Ward,HCL NURSING,HNSI0001170,11857.10
Department of Health,Leicestershire Partnership NHS Trust,22/11/22,Nurse - Band 6 -Agency,Heather Ward,HCL NURSING,HNSI0001170,15.53
Department of Health,Leicestershire Partnership NHS Trust,22/11/22,NURSE - BAND 2 - AGENCY,Kirby Ward,HCL NURSING,HNSI0001170,4123.43
Department of Health,Leicestershire Partnership NHS Trust,22/11/22,NURSE - BAND 5 - AGENCY,Kirby Ward,HCL NURSING,HNSI0001170,4224.52
Department of Health,Leicestershire Partnership NHS Trust,22/11/22,Nurse - Band 6 -Agency,Kirby Ward,HCL NURSING,HNSI0001170,290.73
Department of Health,Leicestershire Partnership NHS Trust,22/11/22,NURSE - BAND 2 - AGENCY,Maple Ward,HCL NURSING,HNSI0001170,804.39
Department of Health,Leicestershire Partnership NHS Trust,22/11/22,NURSE - BAND 5 - AGENCY,Maple Ward,HCL NURSING,HNSI0001170,3493.12
Department of Health,Leicestershire Partnership NHS Trust,22/11/22,Nurse - Band 6 -Agency,Maple Ward,HCL NURSING,HNSI0001170,417.24
Department of Health,Leicestershire Partnership NHS Trust,22/11/22,NURSE - BAND 2 - AGENCY,Mental Health Liaison Team,HCL NURSING,HNSI0001170,7.28
Department of Health,Leicestershire Partnership NHS Trust,22/11/22,NURSE - BAND 5 - AGENCY,Mental Health Liaison Team,HCL NURSING,HNSI0001170,0.53
Department of Health,Leicestershire Partnership NHS Trust,22/11/22,Nurse - Band 6 -Agency,Mental Health Liaison Team,HCL NURSING,HNSI0001170,1826.92
Department of Health,Leicestershire Partnership NHS Trust,22/11/22,NURSE - BAND 2 - AGENCY,Mill Lodge,HCL NURSING,HNSI0001170,506.26
Department of Health,Leicestershire Partnership NHS Trust,22/11/22,NURSE - BAND 5 - AGENCY,Mill Lodge,HCL NURSING,HNSI0001170,1454.62
Department of Health,Leicestershire Partnership NHS Trust,22/11/22,NURSE - BAND 2 - AGENCY,Phoenix Ward (HPC),HCL NURSING,HNSI0001170,2066.74
Department of Health,Leicestershire Partnership NHS Trust,22/11/22,NURSE - BAND 5 - AGENCY,Phoenix Ward (HPC),HCL NURSING,HNSI0001170,4275.67
Department of Health,Leicestershire Partnership NHS Trust,22/11/22,Nurse - Band 6 -Agency,Phoenix Ward (HPC),HCL NURSING,HNSI0001170,447.02
Department of Health,Leicestershire Partnership NHS Trust,22/11/22,NURSE - BAND 2 - AGENCY,Place Of Safety Assessment Unit,HCL NURSING,HNSI0001170,830.51
Department of Health,Leicestershire Partnership NHS Trust,22/11/22,NURSE - BAND 5 - AGENCY,Place Of Safety Assessment Unit,HCL NURSING,HNSI0001170,922.71
Department of Health,Leicestershire Partnership NHS Trust,22/11/22,Nurse - Band 6 -Agency,Place Of Safety Assessment Unit,HCL NURSING,HNSI0001170,455.32
Department of Health,Leicestershire Partnership NHS Trust,22/11/22,NURSE - BAND 2 - AGENCY,Stewart House,HCL NURSING,HNSI0001170,1979.21
Department of Health,Leicestershire Partnership NHS Trust,22/11/22,NURSE - BAND 5 - AGENCY,Stewart House,HCL NURSING,HNSI0001170,951.87
Department of Health,Leicestershire Partnership NHS Trust,22/11/22,Nurse - Band 6 -Agency,Stewart House,HCL NURSING,HNSI0001170,3.71
Department of Health,Leicestershire Partnership NHS Trust,22/11/22,NURSE - BAND 2 - AGENCY,Sycamore (Willows),HCL NURSING,HNSI0001170,2174.50
Department of Health,Leicestershire Partnership NHS Trust,22/11/22,NURSE - BAND 5 - AGENCY,Sycamore (Willows),HCL NURSING,HNSI0001170,5146.24
Department of Health,Leicestershire Partnership NHS Trust,22/11/22,Nurse - Band 6 -Agency,Sycamore (Willows),HCL NURSING,HNSI0001170,42.83
Department of Health,Leicestershire Partnership NHS Trust,22/11/22,NURSE - BAND 2 - AGENCY,The Grange,HCL NURSING,HNSI0001170,372.83
Department of Health,Leicestershire Partnership NHS Trust,22/11/22,NURSE - BAND 5 - AGENCY,The Grange,HCL NURSING,HNSI0001170,1.11
Department of Health,Leicestershire Partnership NHS Trust,22/11/22,NURSE - BAND 2 - AGENCY,Thornton Ward - Bradgate Unit,HCL NURSING,HNSI0001170,666.79
Department of Health,Leicestershire Partnership NHS Trust,22/11/22,NURSE - BAND 5 - AGENCY,Thornton Ward - Bradgate Unit,HCL NURSING,HNSI0001170,1545.33
Department of Health,Leicestershire Partnership NHS Trust,22/11/22,Nurse - Band 6 -Agency,Thornton Ward - Bradgate Unit,HCL NURSING,HNSI0001170,208.32
Department of Health,Leicestershire Partnership NHS Trust,22/11/22,NURSE - BAND 2 - AGENCY,Welford Ward,HCL NURSING,HNSI0001170,4616.79
Department of Health,Leicestershire Partnership NHS Trust,22/11/22,NURSE - BAND 5 - AGENCY,Welford Ward,HCL NURSING,HNSI0001170,7233.89
Department of Health,Leicestershire Partnership NHS Trust,22/11/22,Nurse - Band 6 -Agency,Welford Ward,HCL NURSING,HNSI0001170,789.95
Department of Health,Leicestershire Partnership NHS Trust,22/11/22,NURSE - BAND 2 - AGENCY,AMH - Central Access Point,HCL WORKFORCE SOLUTIONS,HWSI0001440,4211.34
Department of Health,Leicestershire Partnership NHS Trust,22/11/22,NURSE - BAND 5 - AGENCY,AMH - Central Access Point,HCL WORKFORCE SOLUTIONS,HWSI0001440,2472.63
Department of Health,Leicestershire Partnership NHS Trust,22/11/22,Nurse - Band 6 -Agency,AMH - Central Access Point,HCL WORKFORCE SOLUTIONS,HWSI0001440,1842.30
Department of Health,Leicestershire Partnership NHS Trust,22/11/22,NURSE - BAND 2 - AGENCY,Adult City Central CMHT - St Peters,HCL WORKFORCE SOLUTIONS,HWSI0001440,555.15
Department of Health,Leicestershire Partnership NHS Trust,22/11/22,NURSE - BAND 5 - AGENCY,Adult City Central CMHT - St Peters,HCL WORKFORCE SOLUTIONS,HWSI0001440,277.58
Department of Health,Leicestershire Partnership NHS Trust,22/11/22,NURSE - BAND 2 - AGENCY,Adult County Charnwood CMHT - Loughborough Base,HCL WORKFORCE SOLUTIONS,HWSI0001440,533.85
Department of Health,Leicestershire Partnership NHS Trust,22/11/22,NURSE - BAND 5 - AGENCY,Adult County Charnwood CMHT - Loughborough Base,HCL WORKFORCE SOLUTIONS,HWSI0001440,533.85
Department of Health,Leicestershire Partnership NHS Trust,22/11/22,Nurse - Band 6 -Agency,Adult County Charnwood CMHT - Loughborough Base,HCL WORKFORCE SOLUTIONS,HWSI0001440,266.93
Department of Health,Leicestershire Partnership NHS Trust,22/11/22,NURSE - BAND 2 - AGENCY,Ashby Ward (Bradgate Unit),HCL WORKFORCE SOLUTIONS,HWSI0001440,56.88
Department of Health,Leicestershire Partnership NHS Trust,22/11/22,NURSE - BAND 5 - AGENCY,Ashby Ward (Bradgate Unit),HCL WORKFORCE SOLUTIONS,HWSI0001440,275.98
Department of Health,Leicestershire Partnership NHS Trust,22/11/22,NURSE - BAND 2 - AGENCY,Beaumont Ward - Bradgate Unit,HCL WORKFORCE SOLUTIONS,HWSI0001440,339.61
Department of Health,Leicestershire Partnership NHS Trust,22/11/22,Nurse - Band 6 -Agency,Beaumont Ward - Bradgate Unit,HCL WORKFORCE SOLUTIONS,HWSI0001440,34.13
Department of Health,Leicestershire Partnership NHS Trust,22/11/22,NURSE - BAND 2 - AGENCY,Crisis Resolution,HCL WORKFORCE SOLUTIONS,HWSI0001440,7633.83
Department of Health,Leicestershire Partnership NHS Trust,22/11/22,NURSE - BAND 5 - AGENCY,Crisis Resolution,HCL WORKFORCE SOLUTIONS,HWSI0001440,3168.00
Department of Health,Leicestershire Partnership NHS Trust,22/11/22,Nurse - Band 6 -Agency,Crisis Resolution,HCL WORKFORCE SOLUTIONS,HWSI0001440,2823.59
Department of Health,Leicestershire Partnership NHS Trust,22/11/22,NURSE - BAND 2 - AGENCY,Heather Ward,HCL WORKFORCE SOLUTIONS,HWSI0001440,275.98
Department of Health,Leicestershire Partnership NHS Trust,22/11/22,NURSE - BAND 5 - AGENCY,Heather Ward,HCL WORKFORCE SOLUTIONS,HWSI0001440,56.88
Department of Health,Leicestershire Partnership NHS Trust,22/11/22,NURSE - BAND 2 - AGENCY,South Leicestershire CMHT MHSOP,HCL WORKFORCE SOLUTIONS,HWSI0001440,1637.39
Department of Health,Leicestershire Partnership NHS Trust,22/11/22,NURSE - BAND 5 - AGENCY,South Leicestershire CMHT MHSOP,HCL WORKFORCE SOLUTIONS,HWSI0001440,1364.49
Department of Health,Leicestershire Partnership NHS Trust,22/11/22,Nurse - Band 6 -Agency,South Leicestershire CMHT MHSOP,HCL WORKFORCE SOLUTIONS,HWSI0001440,545.77
Department of Health,Leicestershire Partnership NHS Trust,22/11/22,Nurse - Band 6 -Agency,CAMHS HUB / CAP,HCL WORKFORCE SOLUTIONS,HWSI0001449,6195.77
Department of Health,Leicestershire Partnership NHS Trust,22/11/22,Nurse - Band 6 -Agency,CAMHS Waiting List Monies,HCL WORKFORCE SOLUTIONS,HWSI0001449,17255.94
Department of Health,Leicestershire Partnership NHS Trust,22/11/22,Nurse - Band 6 -Agency,Crisis Response and Home Treatment,HCL WORKFORCE SOLUTIONS,HWSI0001449,1661.81
Department of Health,Leicestershire Partnership NHS Trust,22/11/22,CHP Estates Management,Merlyn Vaz Centre (CHP),COMM HLTH PARTNERSHIPS LTD,0060256667,32051.45
Department of Health,Leicestershire Partnership NHS Trust,22/11/22,CHP Estates Management,Merlyn Vaz Centre (CHP),COMM HLTH PARTNERSHIPS LTD,0060256670,30202.89
Department of Health,Leicestershire Partnership NHS Trust,23/11/22,WIP Project Not in BS - I M & T Allocations,Work in Progress,SPIRIT DIGITAL LTD,SIN221105SDI00034,162882.32
Department of Health,Leicestershire Partnership NHS Trust,23/11/22,WIP Project Not in BS - I M & T Allocations,Work in Progress,SPIRIT DIGITAL LTD,SIN221105SDI00037,28755.04
Department of Health,Leicestershire Partnership NHS Trust,23/11/22,Professional & Technical Agency,LLR Shared Care Record Programme,CHANNEL 3 CONSULTING,20930,58223.24
Department of Health,Leicestershire Partnership NHS Trust,24/11/22,Legal Fees,Chief Executives Office,BROWNE JACOBSON LLP,IN-000129026,32227.20
Department of Health,Leicestershire Partnership NHS Trust,24/11/22,FP10'S,Adult City Drugs,NHS BUS SERVICES AUTHORITY,1000075442,22985.56
Department of Health,Leicestershire Partnership NHS Trust,24/11/22,FP10'S,Adult County Drugs,NHS BUS SERVICES AUTHORITY,1000075442,18358.31
Department of Health,Leicestershire Partnership NHS Trust,24/11/22,FP10'S,CAMHS Outpatients,NHS BUS SERVICES AUTHORITY,1000075442,8017.80
Department of Health,Leicestershire Partnership NHS Trust,24/11/22,FP10'S,Community Paediatrics,NHS BUS SERVICES AUTHORITY,1000075442,11667.65
Department of Health,Leicestershire Partnership NHS Trust,24/11/22,FP10'S,Dementia Related Drugs and Investigations,NHS BUS SERVICES AUTHORITY,1000075442,6723.38
Department of Health,Leicestershire Partnership NHS Trust,24/11/22,FP10'S,Eating Disorders Outpatient Service,NHS BUS SERVICES AUTHORITY,1000075442,1631.75
Department of Health,Leicestershire Partnership NHS Trust,24/11/22,FP10'S,Forensic Services - Community,NHS BUS SERVICES AUTHORITY,1000075442,12.49
Department of Health,Leicestershire Partnership NHS Trust,24/11/22,FP10'S,LOROS Pharmacy,NHS BUS SERVICES AUTHORITY,1000075442,601.72
Department of Health,Leicestershire Partnership NHS Trust,24/11/22,FP10'S,Lough Swithland Ward,NHS BUS SERVICES AUTHORITY,1000075442,4.89
Department of Health,Leicestershire Partnership NHS Trust,24/11/22,FP10'S,Mental Health Liaison Team,NHS BUS SERVICES AUTHORITY,1000075442,6.78
Department of Health,Leicestershire Partnership NHS Trust,24/11/22,FP10'S,PIER Team - Early Intervention Services,NHS BUS SERVICES AUTHORITY,1000075442,24841.06
Department of Health,Leicestershire Partnership NHS Trust,24/11/22,FP10'S,Snr Med Staff (Inc Med Reps),NHS BUS SERVICES AUTHORITY,1000075442,5038.93
Department of Health,Leicestershire Partnership NHS Trust,24/11/22,Rent,"OSL House (P54, LPT)",OLNATO LTD,071,41700.00
Department of Health,Leicestershire Partnership NHS Trust,28/11/22,Crs_NHS_LT1y -Resus Inventory Supplied.,Balance Sheet Collection,SUPPLY CHAIN CO LTD,1123190108,26385.95
Department of Health,Leicestershire Partnership NHS Trust,28/11/22,Rent,Bridge Park Plaza - First Floor (LPT),FISHER HARG PROCT LTD,756072,80507.52
Department of Health,Leicestershire Partnership NHS Trust,29/11/22,GP IT Expenditure,Area Team,DELL COMPUTERS,7402870265,43800.00
Department of Health,Leicestershire Partnership NHS Trust,29/11/22,Water & Sewerage Charges,"Coalville Community Hospital (P138, LPT)",WATER PLUS,0865005329/CRN00066804,-31663.84
